fUST/lending_fUST_20251214
["ID","MTS","AMOUNT","RATE_DAILY","PERIOD"]
[398460509,1765680631823,-500.0,0.00013699,2]
[398460510,1765680631832,-452.38097116,0.00013699,2]
[398460511,1765680631841,-500.0,0.00013699,2]
[398460512,1765680631850,-500.0,0.00013699,2]
[398460513,1765680631859,-500.0,0.00013699,2]
[398460514,1765680631869,-500.0,0.00013699,2]
[398460515,1765680631878,-500.0,0.00013699,2]
[398460516,1765680631887,-500.0,0.00013699,2]
[398460517,1765680631897,-500.0,0.00013699,2]
[398460518,1765680631906,-500.0,0.00013699,2]
[398460519,1765680631915,-500.0,0.00013699,2]
[398460520,1765680631925,-500.0,0.00013699,2]
[398460521,1765680631933,-500.0,0.00013699,2]
[398460522,1765680631943,-500.0,0.00013699,2]
[398460523,1765680631952,-500.0,0.00013699,2]
[398460524,1765680631961,-500.0,0.00013699,2]
[398460525,1765680631972,-159.38687116,0.00013699,2]
[398460526,1765680631983,-500.0,0.00013699,2]
[398460527,1765680631992,-500.0,0.00013699,2]
[398460528,1765680632002,-500.0,0.00013699,2]
[398460529,1765680632011,-500.0,0.00013699,2]
[398460530,1765680632021,-500.0,0.00013699,2]
[398460531,1765680632031,-165.85841738,0.00013699,2]
[398460532,1765680632040,-500.0,0.00013699,2]
[398460533,1765680632049,-438.37421469,0.00013699,2]
[398460534,1765680632059,-500.0,0.00013699,2]
[398460535,1765680632067,-500.0,0.00013699,2]
[398460536,1765680632077,-500.0,0.00013699,2]
[398460537,1765680632087,-500.0,0.00013699,2]
[398460538,1765680632096,-500.0,0.00013699,2]
[398460539,1765680632105,-500.0,0.00013699,2]
[398460540,1765680632114,-500.0,0.00013699,2]
[398460541,1765680632122,-500.0,0.00013699,2]
[398460542,1765680632131,-500.0,0.00013699,2]
[398460543,1765680632140,-500.0,0.00013699,2]
[398460544,1765680632149,-500.0,0.00013699,2]
[398460545,1765680632158,-500.0,0.00013699,2]
[398460546,1765680632167,-500.0,0.00013699,2]
[398460547,1765680632175,-500.0,0.00013699,2]
[398460548,1765680632185,-500.0,0.00013699,2]
[398460549,1765680632194,-500.0,0.00013699,2]
[398460550,1765680632202,-500.0,0.00013699,2]
[398460551,1765680632211,-500.0,0.00013699,2]
[398460552,1765680632223,-500.0,0.00013699,2]
[398460553,1765680632233,-500.0,0.00013699,2]
[398460554,1765680632242,-500.0,0.00013699,2]
[398460555,1765680632251,-500.0,0.00013699,2]
[398460556,1765680632261,-500.0,0.00013699,2]
[398460557,1765680632270,-500.0,0.00013699,2]
[398460558,1765680632279,-500.0,0.00013699,2]
[398460559,1765680632288,-500.0,0.00013699,2]
[398460560,1765680632299,-2151.470266,0.00013699,2]
[398460561,1765680632308,-2151.470266,0.00013699,2]
[398460562,1765680632317,-2151.470266,0.00013699,2]
[398460563,1765680632326,-2151.470266,0.00013699,2]
[398460564,1765680632337,-151.0,0.00013699,2]
[398460565,1765680632347,-151.0,0.00013699,2]
[398460566,1765680632358,-151.0,0.00013699,2]
[398460567,1765680632368,-151.515699,0.00013699,2]
[398460568,1765680632379,-3021.125491,0.00013699,2]
[398460569,1765680632389,-3021.125491,0.00013699,2]
[398460570,1765680632399,-286.69,0.00013699,2]
[398460571,1765680632409,-3021.125491,0.00013699,2]
[398460572,1765680632419,-3021.125491,0.00013699,2]
[398460573,1765680632430,-10051.67227655,0.00013819,2]
[398460574,1765680632439,-500.0,0.0001382,2]
[398460575,1765680632448,-1017.66869874,0.00013821,2]
[398460576,1765680632456,-1000.0,0.00013821,2]
[398460577,1765680632466,-665.97141108,0.00013821,2]
[398460578,1765680632474,-1000.0,0.00013821,2]
[398460579,1765680632483,-1000.0,0.00013821,2]
[398460580,1765680632492,-1000.0,0.00013821,2]
[398460581,1765680632501,-1000.0,0.00013821,2]
[398460582,1765680632509,-1000.0,0.00013821,2]
[398460583,1765680632518,-1000.0,0.00013821,2]
[398460584,1765680632526,-1000.0,0.00013821,2]
[398460585,1765680632535,-1000.0,0.00013821,2]
[398460586,1765680632544,-1000.0,0.00013821,2]
[398460587,1765680632553,-1000.0,0.00013821,2]
[398460588,1765680632561,-1000.0,0.00013821,2]
[398460589,1765680632570,-1000.0,0.00013821,2]
[398460590,1765680632578,-1000.0,0.00013821,2]
[398460591,1765680632587,-1000.0,0.00013821,2]
[398460592,1765680632596,-1000.0,0.00013821,2]
[398460593,1765680632604,-1000.0,0.00013821,2]
[398460594,1765680632613,-1000.0,0.00013821,2]
[398460595,1765680632622,-1000.0,0.00013821,2]
[398460596,1765680632630,-1000.0,0.00013821,2]
[398460597,1765680632642,-1000.0,0.00013821,2]
[398460598,1765680632650,-510.12838982,0.00013821,2]
[398460599,1765680632659,-1000.0,0.00013821,2]
[398460600,1765680632667,-1000.0,0.00013821,2]
[398460601,1765680632676,-1000.0,0.00013821,2]
[398460602,1765680632684,-1000.0,0.00013821,2]
[398460603,1765680632693,-1000.0,0.00013821,2]
[398460604,1765680632702,-1000.0,0.00013821,2]
[398460605,1765680632710,-1000.0,0.00013821,2]
[398460606,1765680632719,-2151.470266,0.00013821,2]
[398460607,1765680632728,-2151.470266,0.00013821,2]
[398460608,1765680632736,-2151.470266,0.00013821,2]
[398460609,1765680632745,-2151.470266,0.00013821,2]
[398460610,1765680632754,-151.0,0.00013821,2]
[398460611,1765680632763,-151.0,0.00013821,2]
[398460612,1765680632772,-151.0,0.00013821,2]
[398460613,1765680632781,-3021.125491,0.00013821,2]
[398460614,1765680632790,-3021.125491,0.00013821,2]
[398460615,1765680632798,-3021.125491,0.00013821,2]
[398460616,1765680632807,-3021.125491,0.00013821,2]
[398460617,1765680632815,-3021.125491,0.00013821,2]
[398460618,1765680632824,-3021.125491,0.00013821,2]
[398460619,1765680632832,-3021.125491,0.00013821,2]
[398460620,1765680632843,-3021.125491,0.00013821,2]
[398460621,1765680632852,-500.0,0.00013835,2]
[398460622,1765680632860,-208.09365315,0.00013972,2]
[398460623,1765680632869,-300.0,0.00013972,2]
[398460624,1765680632878,-300.0,0.00013972,2]
[398460625,1765680632887,-300.0,0.00013972,2]
[398460626,1765680632896,-300.0,0.00013972,2]
[398460627,1765680632905,-300.0,0.00013972,2]
[398460628,1765680632913,-300.0,0.00013972,2]
[398460629,1765680632922,-300.0,0.00013972,2]
[398460630,1765680632931,-300.0,0.00013972,2]
[398460631,1765680632940,-300.0,0.00013972,2]
[398460632,1765680632949,-300.0,0.00013972,2]
[398460633,1765680632958,-300.0,0.00013972,2]
[398460634,1765680632966,-300.0,0.00013972,2]
[398460635,1765680632976,-300.0,0.00013972,2]
[398460636,1765680632985,-300.0,0.00013972,2]
[398460637,1765680632993,-300.0,0.00013972,2]
[398460638,1765680633002,-600.0,0.00013972,2]
[398460639,1765680633011,-3021.125491,0.00013972,2]
[398460640,1765680633019,-3021.125491,0.00013972,2]
[398460641,1765680633028,-3021.125491,0.00013972,2]
[398460642,1765680633037,-3021.125491,0.00013972,2]
[398460643,1765680633045,-500.0,0.00013973,2]
[398460644,1765680633055,-286.69,0.00013973,2]
[398460645,1765680633063,-210.90979275,0.00014147,2]
[398460646,1765680633072,-600.0,0.00014221,2]
[398460647,1765680633081,-500.0,0.00014246,2]
[398460648,1765680633090,-3021.125491,0.00014246,2]
[398460649,1765680633099,-3021.125491,0.00014246,2]
[398460650,1765680633107,-3021.125491,0.00014246,2]
[398460651,1765680633116,-3021.1255,0.00014246,2]
[398460652,1765680633125,-1000.86029496,0.00014247,2]
[398460653,1765680633134,-1001.29447363,0.00014247,2]
[398460654,1765680633361,-408.76015703,0.00014247,2]
[398460655,1765680633370,-1001.07785008,0.00014247,2]
[398460656,1765680633379,-1000.0,0.00014247,2]
[398460657,1765680633388,-1000.0,0.00014247,2]
[398460658,1765680633398,-185.65618709,0.00014247,2]
[398460659,1765680633407,-1000.0,0.00014247,2]
[398460660,1765680633416,-1000.0,0.00014247,2]
[398460661,1765680633425,-1000.0,0.00014247,2]
[398460662,1765680633434,-1000.0,0.00014247,2]
[398460663,1765680633443,-1000.0,0.00014247,2]
[398460664,1765680633452,-1000.0,0.00014247,2]
[398460665,1765680633461,-1000.0,0.00014247,2]
[398460666,1765680633471,-186.20529359,0.00014247,2]
[398460667,1765680633480,-1000.0,0.00014247,2]
[398460668,1765680633489,-1000.0,0.00014247,2]
[398460669,1765680633497,-1098.85923058,0.00014247,2]
[398460670,1765680633506,-1000.0,0.00014247,2]
[398460671,1765680633515,-1000.0,0.00014247,2]
[398460672,1765680633524,-1000.0,0.00014247,2]
[398460673,1765680633533,-1000.0,0.00014247,2]
[398460674,1765680633542,-1000.0,0.00014247,2]
[398460675,1765680633551,-1000.0,0.00014247,2]
[398460676,1765680633559,-1000.0,0.00014247,2]
[398460677,1765680633568,-563.24818892,0.00014247,2]
[398460678,1765680633577,-1000.0,0.00014247,2]
[398460679,1765680633586,-1000.0,0.00014247,2]
[398460680,1765680633594,-1000.0,0.00014247,2]
[398460681,1765680633603,-1000.0,0.00014247,2]
[398460682,1765680633612,-1000.0,0.00014247,2]
[398460683,1765680633620,-1000.0,0.00014247,2]
[398460684,1765680633630,-1000.0,0.00014247,2]
[398460685,1765680633639,-1000.0,0.00014247,2]
[398460686,1765680633649,-1000.0,0.00014247,2]
[398460687,1765680633658,-1000.0,0.00014247,2]
[398460688,1765680633667,-1000.0,0.00014247,2]
[398460689,1765680633675,-1000.0,0.00014247,2]
[398460690,1765680633684,-1000.0,0.00014247,2]
[398460691,1765680633692,-1000.0,0.00014247,2]
[398460692,1765680633701,-1000.0,0.00014247,2]
[398460693,1765680633710,-1000.0,0.00014247,2]
[398460694,1765680633719,-1136.48942717,0.00014247,2]
[398460695,1765680633727,-1000.0,0.00014247,2]
[398460696,1765680633736,-1000.0,0.00014247,2]
[398460697,1765680633745,-1000.0,0.00014247,2]
[398460698,1765680633753,-1000.0,0.00014247,2]
[398460699,1765680633762,-151.0,0.00014247,2]
[398460700,1765680633771,-2151.470266,0.00014247,2]
[398460701,1765680633779,-2151.470266,0.00014247,2]
[398460702,1765680633788,-2151.470266,0.00014247,2]
[398460703,1765680633797,-2151.470266,0.00014247,2]
[398460704,1765680633806,-2151.470266,0.00014247,2]
[398460705,1765680633815,-2151.470266,0.00014247,2]
[398460706,1765680633823,-2151.470266,0.00014247,2]
[398460707,1765680633832,-2151.470266,0.00014247,2]
[398460708,1765680633841,-151.0,0.00014247,2]
[398460709,1765680633850,-151.0,0.00014247,2]
[398460710,1765680633860,-151.0,0.00014247,2]
[398460711,1765680633869,-151.0,0.00014247,2]
[398460712,1765680633878,-151.0,0.00014247,2]
[398460713,1765680633887,-202.306248,0.00014247,2]
[398460714,1765680633896,-286.69,0.00014247,2]
[398460715,1765680633905,-151.0,0.000143,2]
[398460716,1765680633914,-2151.470266,0.00014368,2]
[398460717,1765680633923,-2151.470266,0.00014368,2]
[398460718,1765680633932,-1202.58440266,0.00014368,2]
[398460719,1765680633946,-948.88586334,0.00014368,2]
[398460720,1765680633955,-2151.470264,0.00014368,2]
[398460721,1765680633963,-151.0,0.00014368,2]
[398460722,1765680633972,-151.0,0.00014368,2]
[398460723,1765680633981,-820.65625442,0.00014368,2]
[398460724,1765680633993,-437.10828324,0.00014368,2]
[398460725,1765680634002,-1500.0,0.00014368,2]
[398460726,1765680634010,-1500.0,0.00014368,2]
[398460727,1765680634019,-1500.0,0.00014368,2]
[398460728,1765680634028,-332.19182284,0.00014368,2]
[398460753,1765680637629,-1167.80817716,0.00014368,2]
[398460755,1765680637640,-1130.34686378,0.00014368,2]
[398460757,1765680637650,-1446.27256072,0.00014368,2]
[398460759,1765680637659,-1500.0,0.00014368,2]
[398460761,1765680637669,-1500.0,0.00014368,2]
[398460762,1765680637679,-1500.0,0.00014368,2]
[398460763,1765680637688,-1500.0,0.00014368,2]
[398460764,1765680637698,-1500.0,0.00014368,2]
[398460765,1765680637708,-1492.26745694,0.00014368,2]
[398460766,1765680637720,-7.73254306,0.00014368,2]
[398460767,1765680637730,-1500.0,0.00014368,2]
[398460768,1765680637740,-1500.0,0.00014368,2]
[398460769,1765680637750,-1500.0,0.00014368,2]
[398460770,1765680637760,-1500.0,0.00014368,2]
[398460771,1765680637770,-1500.0,0.00014368,2]
[398460772,1765680637780,-1500.0,0.00014368,2]
[398460773,1765680637789,-1500.0,0.00014368,2]
[398460774,1765680637798,-1500.0,0.00014368,2]
[398460775,1765680637807,-1500.0,0.00014368,2]
[398460776,1765680637816,-1500.0,0.00014368,2]
[398460777,1765680637825,-1500.0,0.00014368,2]
[398460778,1765680637834,-1500.0,0.00014368,2]
[398460779,1765680637843,-1500.0,0.00014368,2]
[398460780,1765680637852,-1500.0,0.00014368,2]
[398460781,1765680637861,-1409.21927747,0.00014368,2]
[398460782,1765680637871,-286.69,0.00014521,2]
[398460783,1765680637880,-900.0,0.00014768,2]
[398460784,1765680637890,-1500.65082914,0.00014795,2]
[398460785,1765680637899,-281.65743991,0.00014795,2]
[398460786,1765680637908,-1500.0,0.00014795,2]
[398460787,1765680637917,-907.82724503,0.00014795,2]
[398460788,1765680637926,-1506.51986807,0.00014795,2]
[398460789,1765680637935,-1500.87265953,0.00014795,2]
[398460790,1765680637945,-1500.62465246,0.00014795,2]
[398460791,1765680637954,-1500.0,0.00014795,2]
[398460792,1765680637962,-1500.0,0.00014795,2]
[398460793,1765680637971,-1500.0,0.00014795,2]
[398460794,1765680637980,-1500.66893437,0.00014795,2]
[398460795,1765680637989,-1500.88202055,0.00014795,2]
[398460796,1765680637999,-1502.39662307,0.00014795,2]
[398460797,1765680638008,-1500.74463124,0.00014795,2]
[398460798,1765680638018,-1501.43219273,0.00014795,2]
[398460799,1765680638027,-1500.5829708,0.00014795,2]
[398460800,1765680638037,-1509.60429684,0.00014795,2]
[398460801,1765680638046,-1501.06726894,0.00014795,2]
[398460802,1765680638056,-1608.29206417,0.00014795,2]
[398460803,1765680638065,-1500.0,0.00014795,2]
[398460804,1765680638074,-1502.82948529,0.00014795,2]
[398460806,1765680638083,-1500.69003338,0.00014795,2]
[398460807,1765680638093,-1500.79862694,0.00014795,2]
[398460809,1765680638103,-916.09030054,0.00014795,2]
[398460811,1765680638112,-1500.65726398,0.00014795,2]
[398460813,1765680638122,-1500.93090517,0.00014795,2]
[398460815,1765680638132,-1500.72216669,0.00014795,2]
[398460817,1765680638141,-661.42824565,0.00014795,2]
[398460819,1765680638151,-1501.59830456,0.00014795,2]
[398460821,1765680638161,-1501.1598121,0.00014795,2]
[398460822,1765680638172,-1500.8530126,0.00014795,2]
[398460824,1765680638182,-1514.43732489,0.00014795,2]
[398460825,1765680638192,-627.66134737,0.00014795,2]
[398460826,1765680638203,-1500.74432834,0.00014795,2]
[398460827,1765680638213,-1501.10172958,0.00014795,2]
[398460829,1765680638231,-1500.0,0.00014795,2]
[398460831,1765680638250,-1501.12689112,0.00014795,2]
[398460833,1765680638266,-1500.84759913,0.00014795,2]
[398460834,1765680638276,-151.0,0.00014795,2]
[398460835,1765680638286,-286.70422674,0.00014795,2]
[398460836,1765680638295,-861.53927558,0.00014916,2]
[398460837,1765680638304,-1500.0,0.00014916,2]
[398460838,1765680638313,-2123.73135597,0.00014916,2]
[398460839,1765680638322,-1500.0,0.00014916,2]
[398460840,1765680638332,-2001.22659081,0.00014916,2]
[398460841,1765680638341,-2001.26914428,0.00014916,2]
[398460842,1765680638351,-1500.0,0.00014916,2]
[398460843,1765680638360,-1500.0,0.00014916,2]
[398460844,1765680638369,-500.0,0.00014916,2]
[398460845,1765680638379,-386.21431865,0.00014916,2]
[398460846,1765680638388,-1385.11362795,0.00014916,2]
[398460847,1765680638397,-1500.0,0.00014916,2]
[398460848,1765680638407,-1000.0,0.00014916,2]
[398460849,1765680638417,-1000.0,0.00014916,2]
[398460850,1765680638428,-691.97763643,0.00014916,2]
[398460851,1765680638437,-420.0,0.0001501,2]
[398460852,1765680638447,-801.57053012,0.00015068,2]
[398460853,1765680638457,-151.0,0.000151,2]
[398460854,1765680638468,-500.0,0.00015297,2]
[398460855,1765680638478,-4143.14,0.00015297,2]
[398460856,1765680638488,-963.22317453,0.00015316,2]
[398460857,1765680638498,-2001.16619698,0.00015342,2]
[398460858,1765680638507,-1217.63747863,0.00015342,2]
[398460859,1765680638516,-2003.330868,0.00015342,2]
[398460860,1765680638526,-2001.18873273,0.00015342,2]
[398460861,1765680638535,-151.69500217,0.00015342,2]
[398460862,1765680638544,-2002.03721288,0.00015342,2]
[398460863,1765680638553,-720.0,0.00015369,2]
[398460864,1765680638563,-210.90979271,0.00015622,2]
[398460865,1765680638572,-283.7597264,0.00015684,2]
[398460866,1765680638581,-158.53933159,0.00015753,2]
[398460867,1765680638591,-151.0,0.000158,2]
[398460868,1765680638603,-237.93869574,0.00015894,2]
[398460869,1765680638612,-158.75568611,0.00015894,2]
[398460870,1765680638622,-100000.0,0.0001599,2]
[398460871,1765680638631,-587.0,0.00016449,2]
[398460872,1765680638641,-151.0,0.000166,2]
[398460873,1765680638651,-262.73287342,0.00016827,2]
[398460874,1765680638661,-864.0,0.00016906,2]
[398460875,1765680638670,-614.21201381,0.00017012,2]
[398460876,1765680638680,-210.90979271,0.00017097,2]
[398460877,1765680638689,-363.64324228,0.00017141,2]
[398460878,1765680638699,-1064.86504279,0.00017249,2]
[398460879,1765680638708,-161.94805078,0.00017249,2]
[398460880,1765680638718,-151.0,0.000174,2]
[398460881,1765680638727,-160.0,0.000175,2]
[398460882,1765680638737,-1105.58162485,0.00017551,2]
[398460883,1765680638746,-3187.75733216,0.00017661,2]
[398460884,1765680638757,-327.04510839,0.00017684,2]
[398460885,1765680638767,-500.0,0.00017727,2]
[398460886,1765680638776,-2470.95094176,0.00017757,2]
[398460887,1765680638786,-164.88798439,0.00017776,2]
[398460888,1765680638795,-164.88798438,0.00017778,2]
[398460889,1765680638805,-164.88798438,0.0001778,2]
[398460890,1765680638815,-654.55783611,0.00017811,2]
[398460891,1765680638825,-1064.86504279,0.00017817,2]
[398460892,1765680638835,-242.2641729,0.00017829,2]
[398460893,1765680638844,-4143.14,0.00017874,2]
[398460894,1765680638853,-180.48217332,0.00017875,2]
[398460895,1765680638863,-500.0,0.00017875,2]
[398460896,1765680638873,-500.0,0.00017875,2]
[398460897,1765680638882,-500.0,0.00017875,2]
[398460898,1765680638895,-494.33724306,0.00017875,2]
[398460899,1765680638905,-500.0,0.00017875,2]
[398460900,1765680638915,-500.0,0.00017875,2]
[398460901,1765680638925,-500.0,0.00017875,2]
[398460902,1765680638936,-500.0,0.00017875,2]
[398460903,1765680638946,-500.0,0.00017875,2]
[398460904,1765680638955,-500.0,0.00017875,2]
[398460905,1765680638965,-500.0,0.00017875,2]
[398460906,1765680638975,-500.0,0.00017875,2]
[398460907,1765680638984,-500.0,0.00017875,2]
[398460908,1765680638994,-500.0,0.00017875,2]
[398460909,1765680639004,-500.0,0.00017875,2]
[398460910,1765680639014,-500.0,0.00017875,2]
[398460911,1765680639023,-500.0,0.00017875,2]
[398460912,1765680639033,-500.0,0.00017875,2]
[398460913,1765680639043,-253.45356715,0.00017875,2]
[398460914,1765680639052,-500.0,0.00017875,2]
[398460915,1765680639063,-500.0,0.00017875,2]
[398460916,1765680639073,-500.0,0.00017875,2]
[398460917,1765680639083,-737.99581,0.00017875,2]
[398460918,1765680639093,-737.99581,0.00017875,2]
[398460919,1765680639102,-737.99581,0.00017875,2]
[398460920,1765680639111,-737.99581,0.00017875,2]
[398460921,1765680639121,-151.000333,0.00017875,2]
[398460922,1765680639130,-151.0,0.00017875,2]
[398460923,1765680639139,-155.07957,0.00017875,2]
[398460924,1765680639149,-500.0,0.00017876,2]
[398460925,1765680639158,-4143.14,0.00017876,2]
[398460926,1765680639168,-178.344285,0.00017877,2]
[398460927,1765680639178,-2036.1891736,0.00017877,2]
[398460928,1765680639188,-14680.9973297,0.00017877,2]
[398460929,1765680639197,-737.99581,0.00017877,2]
[398460930,1765680639208,-737.99581,0.00017877,2]
[398460931,1765680639217,-737.99581,0.00017877,2]
[398460932,1765680639228,-737.99581,0.00017877,2]
[398460934,1765680639237,-500.0,0.00017878,2]
[398460936,1765680639247,-500.0,0.00017878,2]
[398460937,1765680639255,-2057.39,0.00017878,2]
[398460941,1765680639455,-486.0,0.00018027,2]
[398460942,1765680639467,-260.0,0.00018048,2]
[398460943,1765680639477,-1965.47844418,0.00018091,2]
[398460944,1765680639487,-151.0,0.000182,2]
[398460945,1765680639498,-500.0,0.00018385,2]
[398460946,1765680639508,-1064.86504279,0.00018386,2]
[398460947,1765680639518,-1163.6583753,0.00018481,2]
[398460948,1765680639528,-210.90979271,0.00018571,2]
[398460949,1765680639540,-1000.0,0.00018596,10]
[398460950,1765680639549,-360.0,0.00018596,2]
[398460951,1765680639558,-3071.06006903,0.0001863,2]
[398460952,1765680639567,-508.90715923,0.000189,2]
[398460953,1765680639577,-500.0,0.000189,2]
[398460954,1765680639586,-2057.39,0.000189,2]
[398460955,1765680639595,-151.0,0.000189,2]
[398460956,1765680639604,-1064.86504279,0.00018954,2]
[398460957,1765680639615,-3299.65,0.00018993,2]
[398460958,1765680639626,-151.0,0.00018997,2]
[398460959,1765680639637,-151.490049,0.00018997,2]
[398460960,1765680639650,-191.68158966,0.00019,2]
[398460961,1765680639660,-200.3799291,0.00019,2]
[398460962,1765680639669,-460.0,0.00019144,2]
[398460963,1765680639679,-1818.2162114,0.00019151,2]
[398460965,1765680639688,-4422.3264994,0.0001917,2]
[398460967,1765680639697,-424.810429,0.00019178,2]
[398460969,1765680639706,-424.810429,0.00019178,2]
[398460970,1765680639715,-424.810429,0.00019178,2]
[398460973,1765680639732,-424.810429,0.00019178,2]
[398460974,1765680639743,-424.810429,0.00019178,2]
[398460976,1765680639752,-424.810429,0.00019178,2]
[398460978,1765680639762,-424.810429,0.00019178,2]
[398460980,1765680639771,-424.810429,0.00019178,2]
[398460982,1765680639780,-424.810429,0.00019178,2]
[398460984,1765680639790,-424.810429,0.00019178,2]
[398460986,1765680639799,-424.810429,0.00019178,2]
[398460988,1765680639809,-424.810429,0.00019178,2]
[398460990,1765680639818,-424.810429,0.00019178,2]
[398460992,1765680639828,-424.810429,0.00019178,2]
[398460994,1765680639837,-424.810429,0.00019178,2]
[398460996,1765680639846,-424.810429,0.00019178,2]
[398460998,1765680639856,-424.810429,0.00019178,2]
[398461000,1765680639865,-424.810429,0.00019178,2]
[398461002,1765680639874,-424.810429,0.00019178,2]
[398461004,1765680639883,-424.810435,0.00019178,2]
[398461006,1765680639892,-662.68009649,0.00019352,2]
[398461008,1765680639902,-1064.86504279,0.00019523,2]
[398461010,1765680639911,-208.59,0.000196,2]
[398461012,1765680639919,-644.48,0.000196,2]
[398461014,1765680639929,-370.33049039,0.00019684,2]
[398461016,1765680639938,-168.61062556,0.00019692,2]
[398461018,1765680639947,-151.0,0.000197,2]
[398461020,1765680639957,-165.4908484,0.00019756,2]
[398461022,1765680639966,-500.0,0.00019767,2]
[398461024,1765680639975,-2036.1891736,0.00019768,2]
[398461026,1765680639985,-500.0,0.00019769,2]
[398461028,1765680639994,-151.0,0.0001977,2]
[398461030,1765680640004,-403.14623,0.0001977,2]
[398461032,1765680640014,-403.14623,0.0001977,2]
[398461034,1765680640023,-403.14623,0.0001977,2]
[398461036,1765680640032,-403.14623,0.0001977,2]
[398461038,1765680640041,-737.99581,0.0001977,2]
[398461040,1765680640050,-737.99581,0.0001977,2]
[398461042,1765680640060,-737.99581,0.0001977,2]
[398461044,1765680640069,-737.99581,0.0001977,2]
[398461046,1765680640078,-737.99581,0.0001977,2]
[398461048,1765680640087,-737.99581,0.0001977,2]
[398461050,1765680640096,-737.99581,0.0001977,2]
[398461052,1765680640105,-737.99581,0.0001977,2]
[398461054,1765680640114,-4143.14,0.0001977,2]
[398461056,1765680640123,-14680.9973297,0.0001977,2]
[398461058,1765680640133,-11284.24,0.000198,2]
[398461060,1765680640141,-500.0,0.00019955,2]
[398461062,1765680640151,-2156.0,0.00019956,2]
[398461064,1765680640159,-631.0,0.00019956,2]
[398461066,1765680640168,-1360.0,0.00019956,2]
[398461068,1765680640177,-415.0,0.00019956,2]
[398461070,1765680640186,-500.0,0.0001999,2]
[398461072,1765680640195,-3299.65,0.00019999,2]
[398461074,1765680640204,-737.99581,0.00019999,2]
[398461076,1765680640213,-737.99581,0.00019999,2]
[398461078,1765680640227,-737.99581,0.00019999,2]
[398461080,1765680640235,-737.995812,0.00019999,2]
[398461082,1765680640244,-4143.14,0.00019999,2]
[398461084,1765680640253,-1700.0,0.0002,7]
[398461086,1765680640263,-1851.0,0.0002,30]
[398461088,1765680640271,-151.0,0.0002,2]
[398461090,1765680640280,-2000.0,0.0002,7]
[398461092,1765680640290,-210.90979271,0.00020046,2]
[398461094,1765680640299,-1064.86504279,0.00020091,2]
[398461096,1765680640309,-500.0,0.00020107,2]
[398461098,1765680640317,-151.0,0.00020146,2]
[398461100,1765680640326,-1000.0,0.00020146,2]
[398461102,1765680640335,-306.80608605,0.00020146,2]
[398461104,1765680640344,-1000.0,0.00020146,2]
[398461106,1765680640354,-1000.0,0.00020146,2]
[398461108,1765680640363,-1000.0,0.00020146,2]
[398461110,1765680640371,-1000.0,0.00020146,2]
[398461112,1765680640380,-1000.0,0.00020146,2]
[398461114,1765680640389,-1000.0,0.00020146,2]
[398461116,1765680640398,-1000.0,0.00020146,2]
[398461118,1765680640407,-1000.0,0.00020146,2]
[398461120,1765680640416,-1000.0,0.00020146,2]
[398461121,1765680640425,-1000.0,0.00020146,2]
[398461123,1765680640435,-1000.0,0.00020146,2]
[398461125,1765680640443,-574.12855637,0.00020146,2]
[398461127,1765680640452,-1000.0,0.00020146,2]
[398461129,1765680640462,-1000.0,0.00020146,2]
[398461131,1765680640471,-1000.0,0.00020146,2]
[398461133,1765680640479,-250.0,0.00020146,2]
[398461135,1765680640490,-1000.0,0.00020146,2]
[398461137,1765680640499,-274.31802774,0.00020146,2]
[398461139,1765680640508,-1000.0,0.00020146,2]
[398461141,1765680640517,-1000.0,0.00020146,2]